[Event "Coimbra Queima Fitas Open 2024"]
[Site "Coimbra"]
[Date "2024.04.25"]
[Round "1.8"]
[White "Meuter, Alain Louis"]
[Black "Povshednyi, Ivan"]
[Result "0-1"]
[ECO "A04"]
[WhiteElo "1674"]
[BlackElo "2249"]
[Annotator "TA"]
[PlyCount "58"]
[EventDate "2024.04.23"]
[EventType "swiss"]
[EventCountry "POR"]
[SourceTitle "playchess.com"]
[Source "ChessBase"]
[SourceQuality "1"]
[TimeControl "5400+30"]

{[%evp 17,58,-20,-11,-22,-10,-22,13,-24,-27,-37,-43,-32,-15,-45,-36,-61,-60,-88,-87,-192,-198,-191,-195,-193,-165,-224,-216,-238,-244,-302,-293,-468,-435,-447,-352,-362,-345,-303,-263,-247,-258,-256,-243]} 1. Nf3 {[%emt 0:01:14]} g6 {[%emt 0:00:34]} 2. g3 {[%emt 0:00:42]} Bg7 {[%emt 0:00:36]} 3. Bg2 {[%emt 0:01:09]} Nf6 {[%emt 0:02:14]} 4. O-O {[%emt 0:03:28]} O-O {[%emt 0:02:19]} 5. d3 {[%emt 0:02:05]} d6 {[%emt 0:02:04]} 6. e4 {[%emt 0:02:07]} c5 {[%emt 0:00:15]} 7. c3 {[%emt 0:00:40]} Nc6 8. Re1 {[%emt 0:00:42]} e5 {[%emt 0:01:38]} 9. Nbd2 {[%emt 0:00:56]} h6 {[%emt 0:01:50]} 10. Nf1 {[%emt 0:02:23]} Be6 {[%emt 0:05:19]} 11. Ne3 {[%emt 0:10:14]} Nd7 {[%emt 0:06:15]} 12. g4 {[%emt 0:06:06][%cal Oe3f5] The position is equal.} Nf6 {[%emt 0:05:58][%cal Bd7f6,Bf6h7,Bh7g5][%mdl 32]} 13. h3 {[%emt 0:03:26]} Re8 {[%emt 0:01:48]} 14. c4 {[%emt 0:06:00]} Nh7 {[%emt 0:09:24]} 15. Nf1 {[%emt 0:03:57]} Ng5 {[%emt 0:00:28]} 16. N3h2 {[%emt 0:03:42]} Nd4 {[%emt 0:08:11][%cal Oh6h5]} 17. Be3 {[%emt 0:03:11]} Bd7 {[%emt 0:01:06][%cal Oh6h5] Black is much more active.} 18. Bxd4 {[%emt 0:11:01]} (18. Bxg5 $17 hxg5 (18... Qxg5 19. Nf3 $17) 19. Ne3) 18... cxd4 $19 {[%emt 0:04:04]} 19. Ng3 {[%emt 0:00:38]} Ne6 {[%emt 0:00:23]} 20. Ne2 {[%emt 0:00:27]} Bf6 {[%emt 0:00:18]} 21. Nf3 {[%emt 0:10:15]} (21. a4 $142) 21... Kg7 {[%emt 0:00:36]} 22. Qd2 {[%emt 0:07:03]} Rh8 {[%emt 0:01:22]} 23. Rf1 {[%emt 0:01:30]} h5 {[%emt 0:01:13]} 24. Nh2 {[%emt 0:00:58]} (24. g5 {was necessary.} Bxg5 (24... Nxg5 $2 25. Nxg5 Bxg5 26. f4 $17) 25. Nxg5 Nxg5 (25... Qxg5 26. f4 $17) 26. f4 Nxh3+ 27. Bxh3 Bxh3 28. Rf2) 24... hxg4 {[%emt 0:03:54]} 25. hxg4 {[%emt 0:05:02]} Bg5 {[%emt 0:00:25]} 26. f4 {[%emt 0:01:44]} Nxf4 {[%emt 0:01:03]} ({But not} 26... Bxf4 27. Nxf4 Nxf4 28. Rxf4 exf4 29. Qxf4 $19) 27. Nxf4 {[%emt 0:02:25]} Bxf4 {[%emt 0:01:13]} 28. Rxf4 {[%emt 0:00:49]} exf4 {[%emt 0:00:03]} 29. Qxf4 {[%emt 0:00:32]} Qf6 {[%emt 0:00:09] Weighted Error Value: White=0.39/Black=0.13 (very precise) .  Mistake:       	White=3     	---        Inaccurate:     	White=3     	Black=1      OK:         	White=2     	Black=7      Best:        	White=1     	Black=1} 0-1

[Event "Coimbra Queima Fitas Open 2024"]
[Site "Coimbra"]
[Date "2024.04.25"]
[Round "1.9"]
[White "Ribeiro, Gustavo Martins Sant"]
[Black "Montenegro, Goncalo Matias Barbo"]
[Result "1-0"]
[ECO "B30"]
[WhiteElo "2226"]
[BlackElo "1665"]
[Annotator "RC"]
[PlyCount "37"]
[EventDate "2024.04.23"]
[EventType "swiss"]
[EventCountry "POR"]
[SourceTitle "playchess.com"]
[Source "ChessBase"]
[SourceQuality "1"]
[TimeControl "5400+30"]

1. e4 {[%emt 0:00:10]} c5 {[%emt 0:00:31]} 2. Nf3 {[%emt 0:00:55]} Nc6 {[%emt 0:00:29]} 3. c3 {[%emt 0:00:49]} d5 {[%emt 0:00:32]} 4. exd5 {[%emt 0:00:06]} Qxd5 {[%emt 0:00:07]} 5. Na3 {[%emt 0:01:10]} a6 {[%emt 0:04:31]} 6. Nc4 {[%emt 0:04:17]} Bg4 {[%emt 0:12:49]} 7. Ne3 {[%emt 0:01:55]} Qe4 {[%emt 0:08:43]} 8. Qb3 {[%emt 0:01:09]} Rb8 {[%emt 0:07:35]} 9. Qxf7+ {[%emt 0:00:53]} Kxf7 {[%emt 0:00:34]} 10. Ng5+ {[%emt 0:00:05]} Ke8 {[%emt 0:01:01]} 11. Nxe4 {[%emt 0:00:06]} Bc8 {[%emt 0:01:28]} 12. Nxc5 {[%emt 0:00:34]} e5 {[%emt 0:01:06]} 13. Ne4 {[%emt 0:00:49]} Nf6 {[%emt 0:00:31]} 14. Bd3 {[%emt 0:03:01]} Nxe4 {[%emt 0:03:38]} 15. Bxe4 {[%emt 0:00:59]} g6 {[%emt 0:03:48]} 16. h4 {[%emt 0:01:35]} Ne7 {[%emt 0:01:12]} 17. b3 {[%emt 0:00:39]} Bf5 {[%emt 0:01:08]} 18. d3 {[%emt 0:00:41]} Bg7 {[%emt 0:00:32]} 19. Ba3 {[%emt 0:00:15]} 1-0

[Event "Coimbra Queima Fitas Open 2024"]
[Site "Coimbra"]
[Date "2024.04.25"]
[Round "1.10"]
[White "Melo, Ricardo Jorge Do Nas"]
[Black "Garcia Dorado, Alberto"]
[Result "0-1"]
[ECO "E24"]
[WhiteElo "1663"]
[BlackElo "2218"]
[Annotator "TA"]
[PlyCount "98"]
[EventDate "2024.04.23"]
[EventType "swiss"]
[EventCountry "POR"]
[SourceTitle "playchess.com"]
[Source "ChessBase"]
[SourceQuality "1"]
[TimeControl "5400+30"]

{[%evp 11,98,0,6,12,15,0,0,-7,0,-18,18,8,25,-13,0,0,24,24,14,26,20,0,34,30,28,13,18,0,0,0,0,0,0,0,2,-11,-11,-17,-12,-18,-11,-34,-39,-129,-133,-149,-133,-136,-138,-172,-155,-177,-181,-189,-175,-231,-182,-289,-291,-256,-284,-289,-283,-364,-372,-408,-391,-422,-427,-492,-508,-475,-543,-842,-534,-533,-526,-737,-822,-746,-722,-950,-893,-1369,-1206,-29983,-29983,-29981,-29975]} 1. d4 {[%emt 0:00:30]} Nf6 {[%emt 0:01:54]} 2. c4 {[%emt 0:00:00]} e6 {[%emt 0:00:10]} 3. Nc3 {[%emt 0:00:00]} Bb4 {[%emt 0:00:56]} 4. a3 {[%emt 0:02:55]} Bxc3+ {[%emt 0:03:01]} 5. bxc3 {[%emt 0:00:09]} d5 {[%emt 0:04:45]} 6. Bg5 {[%emt 0:04:18]} O-O {[%emt 0:01:32]} 7. cxd5 {[%emt 0:05:31]} exd5 {[%emt 0:00:40][%cal Oc7c5]} 8. Bxf6 {[%emt 0:02:17]} Qxf6 {[%emt 0:00:02]} 9. e3 {[%emt 0:00:13] The position is equal.} Nc6 {[%emt 0:11:49]} 10. Bd3 {[%emt 0:00:19]} Ne7 {[%emt 0:01:28]} 11. Ne2 {[%emt 0:00:27]} Bf5 {[%emt 0:01:16]} 12. Ng3 {[%emt 0:00:23]} Bg6 {[%emt 0:00:57]} 13. O-O {[%emt 0:00:27]} Qe6 {[%emt 0:00:44]} 14. Re1 {[%emt 0:19:42]} Bxd3 {[%emt 0:01:46]} 15. Qxd3 {[%emt 0:03:40]} f5 {[%emt 0:00:14]} 16. f3 {[%emt 0:04:09]} Qg6 {[%emt 0:08:27]} 17. Ne2 {[%emt 0:08:28]} c6 {[%emt 0:04:06]} 18. c4 {[%emt 0:03:19]} Qf7 {[%emt 0:01:31]} 19. cxd5 {[%emt 0:07:44]} Nxd5 {[%emt 0:01:01]} 20. Nc3 {[%emt 0:00:31]} Rad8 {[%emt 0:06:58]} 21. Nxd5 {[%emt 0:06:32]} Qxd5 {[%emt 0:00:32]} 22. Rac1 {[%emt 0:00:30]} f4 {[%emt 0:02:07]} 23. Qc4 {[%emt 0:03:09]} fxe3 {[%emt 0:06:09]} 24. Qxd5+ {[%emt 0:00:08]} Rxd5 {[%emt 0:00:13]} 25. Rxe3 $11 {[%emt 0:00:07][%mdl 4096] Endgame. KRR-KRR} Rfd8 {[%emt 0:01:41]} 26. Re7 {[%emt 0:01:46]} R8d7 {[%emt 0:00:20]} 27. Rce1 {[%emt 0:01:53] Black continues to play with concentration.} ({White should try} 27. Rxd7 $15 Rxd7 28. Rb1) 27... Rxd4 $17 {[%emt 0:00:34]} 28. R1e3 {[%emt 0:11:47]} Kf8 {[%emt 0:01:16]} 29. R7e5 R4d5 {[%emt 0:01:10]} 30. Re8+ {[%emt 0:00:59]} Kf7 {[%emt 0:00:13]} 31. R8e4 {[%emt 0:00:10]} Rd4 {[%emt 0:01:28]} 32. Re5 {[%emt 0:00:26]} g6 {[%emt 0:00:14] Inhibits Rf5+.} 33. Rc5 {[%emt 0:01:11]} (33. Kf2 {was necessary.}) 33... Rd3 {[%emt 0:01:59]} 34. Rxd3 {[%emt 0:00:43]} (34. Kf2 $142) 34... Rxd3 $19 {[%emt 0:00:13] KR-KR} 35. Ra5 {[%emt 0:00:09]} a6 {[%emt 0:00:30]} 36. Kf2 {[%emt 0:00:12]} Rd2+ {[%emt 0:00:46]} 37. Kg3 {[%emt 0:00:20]} Ke6 {[%emt 0:00:53]} 38. Ra4 {[%emt 0:00:35]} c5 {[%emt 0:00:50]} 39. Re4+ {[%emt 0:01:01]} Kd7 {[%emt 0:00:18]} 40. Rh4 {[%emt 0:00:19]} h5 {[%emt 0:00:26]} 41. Rf4 {[%emt 0:00:25]} b5 {[%emt 0:00:28]} 42. Rf6 {[%emt 0:00:23]} Rd6 {[%emt 0:00:08]} 43. Rf7+ {[%emt 0:01:29]} Kc6 {[%emt 0:00:43]} 44. Kf4 {[%emt 0:00:48]} b4 {[%emt 0:00:11]} 45. axb4 {[%emt 0:00:26]} cxb4 {[%emt 0:00:10]} 46. Rf8 {[%emt 0:02:30]} Kc7 {[%emt 0:01:10] [#] Threatens to win with ...b3.} 47. h4 {[%emt 0:00:12]} b3 {[%emt 0:00:53] ( -> ...b2)} 48. Rf7+ {[%emt 0:04:01]} Rd7 {[%emt 0:00:26]} 49. Rf6 {[%emt 0:01:06]} b2 {[%emt 0:00:12] Weighted Error Value: White=0.57/Black=0.13 (very precise) .  Mistake:       	White=3     	---        Inaccurate:     	White=3     	Black=3      OK:         	White=8     	Black=14     Best:        	---       	Black=2} 0-1

[Event "Coimbra Queima Fitas Open 2024"]
[Site "Coimbra"]
[Date "2024.04.25"]
[Round "1.11"]
[White "Farias, David Nuno Moita Est"]
[Black "Tacuchian, Marcelo De Oliveira"]
[Result "1-0"]
[ECO "B38"]
[WhiteElo "2194"]
[BlackElo "1660"]
[Annotator "TA"]
[PlyCount "61"]
[EventDate "2024.04.23"]
[EventType "swiss"]
[EventCountry "POR"]
[SourceTitle "playchess.com"]
[Source "ChessBase"]
[SourceQuality "1"]
[TimeControl "5400+30"]

{[%evp 11,61,36,46,50,65,62,59,55,113,97,130,137,183,147,155,132,131,114,105,97,154,143,187,173,203,176,206,197,364,370,467,489,483,460,575,570,569,547,557,554,871,827,1035,991,2208,2206,29991,29992,29992,29993,29996,29997]} 1. e4 {[%emt 0:00:12]} c5 {[%emt 0:00:07]} 2. Nf3 {[%emt 0:00:17]} Nc6 {[%emt 0:00:15]} 3. d4 {[%emt 0:00:37]} cxd4 {[%emt 0:00:14]} 4. Nxd4 {[%emt 0:00:06]} g6 {[%emt 0:00:22]} 5. c4 {[%emt 0:01:09]} Bg7 {[%emt 0:00:21]} 6. Be3 {[%emt 0:00:22]} Qb6 {[%emt 0:01:53]} 7. Nb3 {[%emt 0:08:30]} Qc7 {[%emt 0:02:28]} 8. Qd2 {[%emt 0:01:25]} Nf6 {[%emt 0:00:57]} 9. f3 {[%emt 0:00:29] White is slightly better.} e6 {[%emt 0:03:22]} ({Better is} 9... b6 $14) 10. Nc3 {[%emt 0:00:59]} a6 {[%emt 0:02:15] Wards off Nb5} 11. O-O-O {[%emt 0:02:45]} Na5 {[%emt 0:12:58]} (11... b6 $16 12. Bf4 e5) 12. Nxa5 {[%emt 0:17:00]} Qxa5 {[%emt 0:00:11]} 13. Qd6 {[%emt 0:02:34] Bb6 would now be deadly.} Bf8 {[%emt 0:11:01]} 14. Qd4 {[%emt 0:00:47] White has more active pieces.} e5 {[%emt 0:05:54]} 15. Qd3 {[%emt 0:02:32]} Bb4 {[%emt 0:07:05]} (15... d6 $142) 16. Bd2 $16 {[%emt 0:03:41][%cal Be3d2,Bd2h6,Bh6g5][%mdl 32]} Qb6 {[%emt 0:02:40]} 17. Kb1 {[%emt 0:06:59]} Be7 {[%emt 0:01:06]} 18. Bh6 {[%emt 0:01:36]} Bf8 {[%emt 0:07:53]} 19. Qd2 {[%emt 0:04:47]} Ng8 $2 {[%emt 0:06:04]} (19... d6 20. Qg5 Be7) 20. Bg5 {[%emt 0:03:23]} f6 {[%emt 0:03:42]} 21. Nd5 {[%emt 0:01:31]} Qc6 {[%emt 0:00:56]} 22. Be3 {[%emt 0:00:57]} Bc5 {[%emt 0:04:37]} 23. Bxc5 {[%emt 0:01:59]} Qxc5 {[%emt 0:00:05]} 24. b4 {[%emt 0:00:23] Wards off b6} Qc6 {[%emt 0:00:58]} 25. c5 {[%emt 0:01:22]} Ne7 {[%emt 0:03:54]} 26. Bc4 {[%emt 0:01:01] [#] Hoping for Qh6.} Nxd5 {[%emt 0:02:59]} 27. exd5 {[%emt 0:00:13][%cal Be4d5,Bd5d6][%mdl 32]} Qc7 {[%emt 0:01:25]} 28. d6 {[%emt 0:00:12][%cal Od2h6] Threatening mate with Qh6!} Qd8 {[%emt 0:00:50] Black is weak on the light squares} 29. Qd5 {[%emt 0:00:09][%csl Gc4][%cal Rd5f7] White mates.} Rf8 {[%emt 0:00:51]} 30. Rhe1 {[%emt 0:00:06]} g5 {[%emt 0:00:44] [#]} 31. Rxe5+ $1 {[%emt 0:00:15][%mdl 512] White took control after the opening.   Weighted Error Value: White=0.07 (flawless) /Black=0.60.  Mistake:       	---       	Black=4      Inaccurate:     	---       	Black=3      OK:         	White=7     	Black=2      Best:        	White=1     	Black=2} 1-0

[Event "Coimbra Queima Fitas Open 2024"]
[Site "Coimbra"]
[Date "2024.04.25"]
[Round "1.12"]
[White "Cichecki, Adam Ksawery"]
[Black "Goncalves, Samuel Jesus Pereira"]
[Result "1/2-1/2"]
[ECO "B28"]
[WhiteElo "1659"]
[BlackElo "2190"]
[Annotator "TA"]
[PlyCount "136"]
[EventDate "2024.04.23"]
[EventType "swiss"]
[EventCountry "POR"]
[SourceTitle "playchess.com"]
[Source "ChessBase"]
[SourceQuality "1"]
[TimeControl "5400+30"]

{[%evp 14,136,-14,-14,22,-47,20,25,81,72,66,92,188,60,102,97,89,101,95,102,104,107,99,99,99,124,131,135,191,175,289,281,645,667,753,725,666,447,439,439,787,777,717,393,391,341,472,463,465,438,447,343,358,358,412,296,312,211,210,157,245,147,159,128,114,124,125,113,122,99,112,85,95,89,89,0,0,0,0,0,0,0,0,0,0,0,0,0,22,22,45,16,66,67,68,72,71,67,167,8,22,0,0,0,5,5,5,5,6,2,0,0,2,0,0,0,0,0,0,0,0,0,0,0,0]} 1. e4 {[%emt 0:00:03]} c5 {[%emt 0:03:06]} 2. Nf3 {[%emt 0:00:31]} a6 {[%emt 0:00:11]} 3. d4 {[%emt 0:01:29]} cxd4 {[%emt 0:00:08]} 4. Nxd4 {[%emt 0:00:13]} Nf6 {[%emt 0:00:08]} 5. Nc3 {[%emt 0:01:10]} e5 {[%emt 0:00:10]} 6. Nf3 {[%emt 0:01:37]} Bb4 {[%emt 0:00:12]} 7. Bd2 {[%emt 0:00:50]} O-O {[%emt 0:01:29]} 8. Bd3 {[%emt 0:00:43]} d5 {[%emt 0:04:50]} 9. Qe2 {[%emt 0:05:23]} (9. Nxd5 $11 Bxd2+ 10. Nxd2 (10. Qxd2 Nxd5 11. exd5 e4 $17)) 9... Nc6 {[%emt 0:02:30]} ({Black should play} 9... d4 $15 10. Nb1 Nc6) 10. Nxd5 $1 $11 {[%emt 0:05:22]} Bxd2+ {[%emt 0:01:30]} (10... Nxd5 $11 11. exd5 Qxd5) 11. Qxd2 $16 {[%emt 0:01:35]} Nxd5 {[%emt 0:00:51]} 12. exd5 {[%emt 0:00:09]} e4 {[%emt 0:00:03]} (12... Nd4 $16) 13. dxc6 {[%emt 0:01:26]} (13. Bxe4 $18 f5 14. dxc6 fxe4 15. Qxd8 Rxd8 16. Nd2) 13... exf3 {[%emt 0:02:08]} 14. gxf3 {[%emt 0:03:18]} Qf6 {[%emt 0:04:56]} 15. O-O-O {[%emt 0:03:18]} bxc6 {[%emt 0:02:00][%cal Oc8e6]} 16. Be4 {[%emt 0:02:25]} Be6 {[%emt 0:00:59]} 17. Qd4 {[%emt 0:03:46] aiming for Qxf6.} (17. Bxc6 $6 Rac8 18. Be4 Bxa2 $11) 17... Qg5+ {[%emt 0:00:45]} 18. Qe3 {[%emt 0:00:25]} Qa5 {[%emt 0:02:25]} 19. a3 {[%emt 0:00:54]} (19. Bxc6 Rac8 20. Rd6 (20. Bb7 Rb8 $11) 20... Qxa2 $14) (19. Rhg1 {simplifies} g6 20. a3 Bd5 21. Bxd5 cxd5 22. Rg5) 19... Rab8 {[%emt 0:05:23]} 20. Rhg1 {[%emt 0:01:50][%cal Oe3h6] [#] Intending Qh6! and mate.} Qb5 {[%emt 0:09:40]} (20... g6 $16) 21. Qc3 $18 {[%emt 0:06:19][%csl Gg1][%cal Rc3g7]} f6 {[%emt 0:03:06]} (21... g6 $142 22. h4 (22. Bxc6 Qb6 $14) 22... Rfd8 23. Bxc6 Qf5) 22. Rd6 {[%emt 0:01:01]} ({Not} 22. Qxc6 Qxb2+ 23. Kd2 Qe5 $17) (22. Bxc6 Qh5 23. Bd7 Bd5 $11) 22... Kf7 {[%emt 0:21:04]} (22... Qc4 23. Qxc4 (23. Bxc6 Qf4+ 24. Qd2 Qxh2 $18) (23. Rxc6 Qa2 $18) 23... Bxc4 24. Bxc6 (24. Rxc6 f5 $18) 24... Rfc8 25. Rxf6 Kh8) 23. Bxh7 {[%emt 0:10:19]} Rfd8 {[%emt 0:01:34]} 24. Bg6+ {[%emt 0:05:33]} Ke7 {[%emt 0:00:01]} 25. Rxd8 {[%emt 0:00:27]} Rxd8 {[%emt 0:00:02]} 26. Bd3 {[%emt 0:00:22]} Qd5 {[%emt 0:01:37]} (26... Qe5 $142 27. Rxg7+ (27. Bxa6 Qxc3 28. bxc3 g5 $18) 27... Kf8) 27. Rxg7+ {[%emt 0:00:22]} Bf7 {[%emt 0:00:01]} 28. Qb4+ {[%emt 0:05:47]} (28. Bxa6 $2 Qd1#) 28... c5 {[%emt 0:01:52]} 29. Qe4+ {[%emt 0:00:12]} Kf8 {[%emt 0:01:34]} 30. Qxd5 {[%emt 0:01:26]} Bxd5 {[%emt 0:00:02][%mdl 4096] Endgame. KRB-KRB} 31. Rh7 {[%emt 0:00:53]} Kg8 {[%emt 0:00:35]} 32. Rh3 {[%emt 0:00:17]} c4 {[%emt 0:00:11]} 33. Be4 {[%emt 0:00:58]} Be6 {[%emt 0:00:30]} 34. Rg3+ {[%emt 0:00:56]} Kf7 {[%emt 0:00:01]} 35. c3 {[%emt 0:01:17]} f5 {[%emt 0:00:12]} 36. Bc2 {[%emt 0:00:37]} Kf6 {[%emt 0:00:29]} (36... Rh8 $16) 37. f4 {[%emt 0:00:11] h4 is the strong threat.} Rh8 {[%emt 0:00:02]} 38. h3 {[%emt 0:01:30]} Rh4 {[%emt 0:00:02]} 39. Kd2 {[%emt 0:01:17]} Rxf4 {[%emt 0:00:02]} 40. Ke3 {[%emt 0:02:19]} Rh4 {[%emt 0:00:01] Threatens to win with ...f4+.} 41. f4 {[%emt 0:00:51]} Rh8 {[%emt 0:00:02]} 42. Ba4 {[%emt 0:03:10]} Rd8 {[%emt 0:00:31]} 43. Rf3 {[%emt 0:02:41]} Bf7 {[%emt 0:00:45]} 44. Kf2 {[%emt 0:04:29]} (44. Rf2 $16) 44... Rd2+ $11 {[%emt 0:00:24]} 45. Kg3 {[%emt 0:00:13]} Rxb2 {[%emt 0:00:06]} 46. Bc6 {[%emt 0:00:17]} Rb6 {[%emt 0:00:38]} 47. Ba8 {[%emt 0:01:08]} Rb8 {[%emt 0:11:06]} 48. Bc6 {[%emt 0:00:11]} Rb6 {[%emt 0:10:01]} 49. Ba8 {[%emt 0:00:02]} Rb3 {[%emt 0:07:01]} (49... Rb8 $5 50. Bc6 $8 Rb6 $11) 50. a4 {[%emt 0:00:32]} Ra3 {[%emt 0:00:34]} (50... Rb8 $5 51. Bc6 $8 Rb6 $11) 51. Bc6 {[%emt 0:00:17]} Ke6 {[%emt 0:00:03]} 52. Kh4 {[%emt 0:03:02]} Kd6 {[%emt 0:00:19]} ({Better is} 52... Ra2 $11) 53. Ba8 $14 {[%emt 0:00:21]} Rxa4 {[%emt 0:04:10]} 54. Kg5 {[%emt 0:00:24][%cal Oh3h4]} Ra1 {[%emt 0:00:50]} 55. Kxf5 {[%emt 0:01:10]} a5 {[%emt 0:00:04] [#]} (55... Re1 $14) 56. Re3 $2 {[%emt 0:01:29]} (56. Kf6 $1 $18 {[%cal Rf6f7]} Bd5 57. Bxd5 Kxd5 58. f5) 56... a4 {[%emt 0:00:32] The position is equal.} 57. Re5 {[%emt 0:00:48]} a3 {[%emt 0:00:31]} 58. Kf6 {[%emt 0:01:51]} Rf1 {[%emt 0:03:41]} 59. Ra5 {[%emt 0:00:20]} Rxf4+ {[%emt 0:00:20]} 60. Kg5 {[%emt 0:00:24]} Rf1 {[%emt 0:00:41]} 61. Rxa3 {[%emt 0:00:20]} Be6 {[%emt 0:00:30]} 62. h4 {[%emt 0:01:41]} Rg1+ {[%emt 0:00:04]} 63. Kf4 {[%emt 0:01:42]} Rg4+ {[%emt 0:00:30]} 64. Ke3 {[%emt 0:00:10]} Rxh4 {[%emt 0:00:21]} 65. Ra6+ {[%emt 0:00:55]} Ke5 {[%emt 0:00:04]} 66. Ra5+ {[%emt 0:00:16]} Kf6 {[%emt 0:00:04]} 67. Be4 {[%emt 0:00:36]} Rh8 {[%emt 0:01:06]} 68. Kd4 {[%emt 0:00:43]} Rh4 {[%emt 0:01:06] Black defended with fortune.   Weighted Error Value: White=0.43/Black=0.37.  Mistake:       	White=4     	Black=10     Inaccurate:     	White=3     	Black=2      OK:         	White=24    	Black=19     Best:        	White=3     	Black=8      Strong:       	White=1     	---} 1/2-1/2

[Event "Coimbra Queima Fitas Open 2024"]
[Site "Coimbra"]
[Date "2024.04.25"]
[Round "1.13"]
[White "Pinsach Gelabert, Alexandre"]
[Black "Tsuzuki, Yan"]
[Result "1-0"]
[ECO "B10"]
[WhiteElo "2169"]
[BlackElo "1657"]
[Annotator "TA"]
[PlyCount "61"]
[EventDate "2024.04.23"]
[EventType "swiss"]
[EventCountry "POR"]
[SourceTitle "playchess.com"]
[Source "ChessBase"]
[SourceQuality "1"]
[TimeControl "5400+30"]

{[%evp 9,61,0,21,14,21,18,31,5,22,27,40,36,28,43,40,28,60,50,64,45,102,-18,-14,-13,-13,-12,78,87,86,77,119,122,120,112,117,130,120,114,331,329,805,714,698,626,1369,1320,1302,1275,29983,29984,5987,1051,5102,1425]} 1. e4 {[%emt 0:00:05]} c6 {[%emt 0:00:09]} 2. Nf3 {[%emt 0:01:42]} d5 {[%emt 0:00:14]} 3. Nc3 {[%emt 0:00:13]} dxe4 {[%emt 0:00:14]} 4. Nxe4 {[%emt 0:00:07]} Nf6 {[%emt 0:00:12]} 5. Ng3 {[%emt 0:03:47]} Bg4 {[%emt 0:03:15]} 6. h3 {[%emt 0:08:06]} Bxf3 {[%emt 0:00:55]} 7. Qxf3 {[%emt 0:00:05]} e6 {[%emt 0:00:41]} 8. c3 {[%emt 0:01:45] White is slightly better.} Nbd7 {[%emt 0:07:23]} 9. d4 {[%emt 0:00:57]} Bd6 {[%emt 0:03:11]} 10. Bd3 {[%emt 0:01:51]} O-O {[%emt 0:11:30]} 11. O-O {[%emt 0:00:25]} Qc7 {[%emt 0:07:47]} 12. Bg5 {[%emt 0:04:01]} e5 {[%emt 0:12:08]} 13. Nf5 {[%emt 0:12:38]} exd4 $1 {[%emt 0:07:09]} 14. cxd4 {[%emt 0:02:28]} (14. Rad1 $5) 14... Rfe8 {[%emt 0:08:13] [#]} ({Black should try} 14... g6 $14) 15. Nh6+ {[%emt 0:05:32]} gxh6 $11 {[%emt 0:04:19]} 16. Bxf6 {[%emt 0:01:35]} Nxf6 {[%emt 0:00:33]} (16... Bh2+ {looks sharper.} 17. Kh1 Nxf6 18. Qxf6 Qf4) 17. Qxf6 {[%emt 0:00:20]} Re6 {[%emt 0:07:55]} (17... Bh2+ $1 $11 18. Kh1 Qf4 19. Qxf4 Bxf4) 18. Qf5 $16 {[%emt 0:04:31]} Rg6 {[%emt 0:00:40] Black is weak on the light squares} 19. Rfe1 {[%emt 0:01:37]} Rg7 {[%emt 0:07:09]} 20. Re4 {[%emt 0:02:30]} Qc8 {[%emt 0:02:34]} 21. Qh5 {[%emt 0:10:37] White is more active.} f5 {[%emt 0:04:25]} 22. Bc4+ {[%emt 0:04:28]} Kh8 {[%emt 0:01:59]} 23. Re6 $36 {[%emt 0:02:24][%mdl 2048] Keeping Black busy.} Bf4 {[%emt 0:05:38] A mistake that costs the game.} (23... Qd7 $16) 24. Rae1 $18 {[%emt 0:05:34]} (24. Qxf5 Qf8 25. Rf6 Qb4 $18) 24... Rg8 {[%emt 0:01:10] Against Re8} (24... Qg8) 25. Qxf5 {[%emt 0:07:23]} Qf8 {[%emt 0:01:35]} 26. Rf6 {[%emt 0:04:11][%cal Oc4g8] [#] Threatening mate with Bxg8!} Qg7 {[%emt 0:00:45][%csl Gg8][%cal Rg7g2]} 27. Bxg8 {[%emt 0:02:20]} (27. Qxf4 $2 Qxg2#) 27... Rxg8 {[%emt 0:00:07]} 28. g4 {[%emt 0:00:34]} (28. Qxf4 $2 Qxg2#) 28... Bb8 {[%emt 0:01:35]} 29. Rf7 {[%emt 0:01:32]} Qg6 30. Qxg6 {[%emt 0:01:45]} (30. Qd7 $142 Bd6 31. Re6 (31. Qxb7 h5 $18) 31... Rf8 32. Rxg6 (32. Qxd6 Qxf7 33. Qe5+ Kg8 $18) 32... Rxf7 33. Qxf7 hxg6 34. Qf6+ (34. Qxg6 Bf8 $18) 34... Kg8 35. Qxg6+ (35. Qxd6 Kf7 36. f4 a6 37. f5 gxf5 38. gxf5 h5 39. Qe6+ Kg7 40. Qg6+ Kf8 41. f6 b5 42. Qg7+ Ke8 43. Qe7#) 35... Kf8 36. Qxd6+ Kf7 37. f4 (37. Qxh6 Ke7 38. g5 b5 39. g6 Kd7 40. g7 Kc7 41. g8=Q Kb6 42. Qd8+ Kb7 43. Qd7+ Kb6 44. Qhxc6+ Ka5 45. Qxb5#)) 30... Rxg6 {[%emt 0:01:02]} 31. Rf8+ {[%emt 0:00:14] Weighted Error Value: White=0.13 (very precise) /Black=0.66.  Loses game:     	---       	Black=1      Mistake:       	White=1     	Black=3      Inaccurate:     	White=1     	Black=2      OK:         	White=7     	Black=5      Best:        	White=2     	Black=3      Strong:       	---       	Black=1} (31. Re8+ $142 Rg8 32. Rff8 Rxf8 33. Rxf8+ Kg7 34. Rxb8) 1-0